Cogmind - Beta 16 @@@ ROGUE MODE // 2025.10.31 @ 01:38:16 Player: Not_Jesus8 Result: Destroyed by G-34 Mercenary with Small Laser Performance ------------- Evolutions (1) 500 Regions Visited (2) 400 Robots Destroyed (13) 65 Value Destroyed (253) 253 Prototype IDs (0) 0 Alien Tech Used (0) 0 Bonus (200) 200 TOTAL SCORE: 1418 Bonus ------- Pacifist 200 Cogmind --------- Core Integrity 0/400 Matter 205/300 Energy 99/100 System Corruption 0% Temperature Cool (6) Movement Core (50) Location -9/Materials Parts ------- > --- POWER (1) -------- (None) > --- PROPULSION (2) --- (None) > --- UTILITY (4) ------ Structural Scanner Visual Processing Unit Improved Signal Interpreter Transport Network Coupler > --- WEAPON (2) ------- Katana > --- INVENTORY (5) ---- Terrain Scanner Terrain Scan Processor ECM Suite Katana Katana Peak State ------------ > --- POWER ------------ (None) > --- PROPULSION ------- (None) > --- UTILITY ---------- Improved Signal Interpreter Improved Signal Interpreter Improved Signal Interpreter Seismic Detector > --- WEAPON ----------- Katana > --- INVENTORY -------- Improved Signal Interpreter Datajack Hammer Katana Katana [Rating: 14] Favorites ----------- Power None Propulsion None Utility Improved Signal Interpreter Device Structural Scanner Processor Improved Signal Interpreter Protection Core Shielding Weapon Katana Impact Weapon Hammer Slashing Weapon Katana Build | -11 -10 -9 ------- Run | Yrd Mat Mat Slots Evolved 2 | . . 2 Power . | . . . Propulsion . | . . . Utility 2 | . . 2 Weapon . | . . . Parts Attached 12 | . . 12 Power . | . . . Engine . | . . . Core . | . . . Reactor . | . . . Propulsion . | . . . Treads . | . . . Leg . | . . . Wheel . | . . . Hover . | . . . Flight . | . . . Utility 10 | . . 10 Device 3 | . . 3 Storage . | . . . Processor 6 | . . 6 Hackware . | . . . Protection 1 | . . 1 Artifact . | . . . Weapon 2 | . . 2 Energy Gun . | . . . Energy Cannon . | . . . Ballistic Gun . | . . . Ballistic Cannon . | . . . Launcher . | . . . Special Weapon . | . . . Impact Weapon 1 | . . 1 Slashing Weapon 1 | . . 1 Piercing Weapon . | . . . Special Melee Weapon . | . . . Unidentified Prototypes . | . . . Parts Lost 2 | . . 2 Power . | . . . Propulsion . | . . . Utility 2 | . . 2 Weapon . | . . . Highest Loss Streak 2 | . . 2 To Critical Strikes . | . . . Average Backups 3 | . . 4 Power . | . . . Propulsion . | . . . Utility . | . . 1 Weapon 2 | . . 2 Tool/Special . | . . . Unused Backups 9 | . . 9 Power . | . . . Propulsion . | . . . Utility 2 | . . 2 Weapon 6 | . . 6 Tool/Special 1 | . . 1 Average Slot Usage (%) 37 | . . 42 Device 4 | . . 5 Processor 23 | . . 25 Impact Weapon 4 | . . 4 Slashing Weapon 4 | . . 5 Peak Build Rating 14 | . . 14 Average Rating 8 | . . 9 On Entrance . | . . . Avg Prop Armor Cover (%) . | . . . Naked Turns 86 | . 51 35 Heaviest Build 3 | . . 3 Greatest Support 3 | 3 3 3 Greatest Overweight (x) . | . . . Average Overweight (x) . | . . . Largest Inventory Capacity 5 | 5 5 5 Average Capacity 5 | 5 5 5 Most Carried 5 | . 2 5 Average Carried 4 | . . 4 Final Capacity 5 | 5 5 5 Final Carried 5 | . 2 5 Class Distribution -------------------- 100% | Mutant Dominant Class ---------------- Mutant | -10/Materials Mutant | -9/Materials Resources | -11 -10 -9 ----------- Run | Yrd Mat Mat Matter Collected 212 | 68 . 144 Remotely . | . . . Salvage Created 413 | . . 413 Parts 27 | . . 27 Haulers Intercepted 2 | . . 2 Recyclers Shooed 1 | . 1 . Parts Field Recycled . | . . . Retrieved Matter . | . . . Parts Self-Destructed . | . . . Prevented . | . . . Parts Restored . | . . . Kills | -11 -10 -9 ------- Run | Yrd Mat Mat Combat Hostiles Destroyed 4 | . . 4 Melee 4 | . . 4 Classes Destroyed 7 | . . 7 Builder 4 | . . 4 Hauler 2 | . . 2 Operator 2 | . . 2 Watcher 1 | . . 1 Grunt 1 | . . 1 Duelist 1 | . . 1 Sentry 2 | . . 2 Best Kill Streak 4 | . . 4 Combat Bots Only 3 | . . 3 Max Kills in Single Turn 1 | . . 1 Gunslinging . | . . . Exploded . | . . . Melee 1 | . . 1 Uniques/NPCs Destroyed . | . . . Combat | -11 -10 -9 -------- Run | Yrd Mat Mat Hostile Shots Fired 77 | . 42 35 Missed 30 | . 19 11 Hits 47 | . 23 24 Melee 5 | . . 5 Projectile 42 | . 23 19 Damage Taken 735 | . 216 519 Core 621 | . 216 405 Absorbed by Shields . | . . . Redirected to Shielding 10 | . . 10 Core Remaining (%) 56 | 100 13 . Volleys Fired . | . . . Largest . | . . . Hottest . | . . . Shots Fired . | . . . Gun . | . . . Cannon . | . . . Launcher . | . . . Special . | . . . Kinetic . | . . . Thermal . | . . . Explosive . | . . . Electromagnetic . | . . . Robot Hit Streak . | . . . Robot Miss Streak . | . . . Penetration Max . | . . . Secondary Targets . | . . . Shots Hit Robots 25 | . . 25 Core Hits 7 | . . 7 Critical Kills . | . . . Critical Parts Destroyed 3 | . . 3 Critical Strikes 6 | . . 6 Smash 3 | . . 3 Sever 3 | . . 3 Melee Attacks 50 | . . 50 Impact 22 | . . 22 Slashing 28 | . . 28 Piercing . | . . . Sneak Attacks 6 | . . 6 Combat Hostiles . | . . . Follow-up Attacks . | . . . Damage Inflicted 885 | . 3 882 Guns . | . . . Cannons . | . . . Explosions . | . . . Melee 882 | . . 882 Ramming 3 | . 3 . Kinetic . | . . . Thermal . | . . . Explosive . | . . . Electromagnetic . | . . . Impact 327 | . . 327 Slashing 555 | . . 555 Piercing . | . . . Highest Corruption . | . . . Average Corruption . | . . . Corruption Purged . | . . . Corruption Blocked . | . . . Overload Shots . | . . . Overflow Damage 189 | . . 189 Projectiles . | . . . Explosions . | . . . Melee 189 | . . 189 Knockbacks 3 | . . 3 Impact 3 | . . 3 Kinetic . | . . . Secondary . | . . . Self-Inflicted Damage 1 | . 1 . Shots . | . . . Rammed 1 | . 1 . Targets Rammed 1 | . 1 . Kicked . | . . . Crushed . | . . . Highest Temperature . | . . . Average Temperature . | . . . Received Heat Transfer 159 | . 72 87 Siege Activations . | . . . Martial Activations . | . . . Shielding Activations . | . . . Robots Disrupted . | . . . Combat Hostiles . | . . . Robots Corrupted 3 | . . 3 Combat Hostiles . | . . . Parts Fried 10 | . . 10 Impact Corruptions 7 | . . 7 Robots Melted . | . . . Combat Hostiles . | . . . Parts Melted . | . . . Heat Transferred . | . . . Parts Sabotaged . | . . . Parts Stolen . | . . . Parts Stripped . | . . . Power Chain Reactions . | . . . Alert | -11 -10 -9 ------- Run | Yrd Mat Mat Maximum Alert Level . | . . . Low Security (%) 100 | 100 100 100 Level 1 . | . . . Level 2 . | . . . Level 3 . | . . . Level 4 . | . . . Level 5 . | . . . High Security . | . . . Max Security . | . . . Peak Influence 170 | . 24 170 Initial 5 | . . 5 Average 44 | . 4 49 Influence Increases 352 | . 24 328 Destroy 0b10 Robot/C 80 | . . 80 Destroy 0b10 Robot/NC 45 | . . 45 Destroy Leader 36 | . . 36 Successful Hack 18 | . 9 9 Disable Machine 15 | . . 15 Destroy Structure 8 | . . 8 Lose Combat Pursuer 150 | . 15 135 Influence Decreases 206 | . 10 196 Entered New Map 9 | . . 9 Time Decay 177 | . 10 167 Lost Part 20 | . . 20 Squads Dispatched 3 | . 1 2 Investigation 2 | . 1 1 Extermination . | . . . Reinforcement 1 | . . 1 Assault . | . . . Garrison . | . . . Intercept . | . . . Searches Triggered . | . . . Construction Impeded . | . . . Haulers Reinforced . | . . . Active Scanning Responses . | . . . Cargo Convoy Interrupts . | . . . Stealth | -11 -10 -9 --------- Run | Yrd Mat Mat Distress Signals 3 | . . 3 Communications Jammed . | . . . Distress Signals . | . . . Times Spotted 33 | . 11 22 Peak Tracking Total 11 | . 11 7 Tactical Retreats 4 | . 1 3 Traps | -11 -10 -9 ------- Run | Yrd Mat Mat Traps Triggered . | . . . Indirectly . | . . . Trap Hack Attempts . | . . . Triggered . | . . . Disarmed . | . . . Reprogrammed . | . . . Reused . | . . . Traps Extracted . | . . . Installed . | . . . Triggered . | . . . Machines | -11 -10 -9 ---------- Run | Yrd Mat Mat Machines Disabled 1 | . . 1 Max in Single Turn 1 | . . 1 Machines Repaired . | . . . Machines Dismantled . | . . . Machines Sabotaged . | . . . Overloaded Fab Kills . | . . . Hacking | -11 -10 -9 --------- Run | Yrd Mat Mat Machines Accessed 4 | . 2 2 Terminals 4 | . 2 2 Fabricators . | . . . Repair Stations . | . . . Recycling Units . | . . . Scanalyzers . | . . . Garrison Access . | . . . Total Hacks 14 | . 7 7 Successful 5 | . 3 2 Failed 9 | . 4 5 Catastrophic . | . . . Database Lockouts . | . . . Manual 14 | . 7 7 Terminals 14 | . 7 7 Fabricators . | . . . Repair Stations . | . . . Recycling Units . | . . . Scanalyzers . | . . . Garrison Access . | . . . Terminal Hacks 1 | . 1 . Terminal Index 1 | . 1 . Fabricator Hacks . | . . . Repair Station Hacks . | . . . Recycling Unit Hacks . | . . . Scanalyzer . | . . . Garrison Access Hacks . | . . . Unauthorized Hacks 4 | . 2 2 Terminals 4 | . 2 2 Botnet 4 | . 2 2 Fabricators . | . . . Repair Stations . | . . . Recycling Units . | . . . Scanalyzers . | . . . Garrison Access . | . . . Data Cores Recovered . | . . . Used . | . . . Hacking Detections 4 | . 2 2 Full Trace Events 3 | . 1 2 Feedback Events . | . . . Feedback Blocked . | . . . Robot Schematics Acquired . | . . . Robots Built . | . . . Authchips . | . . . Time . | . . . Total Robot Build Rating . | . . . Part Schematics Acquired . | . . . Parts Built . | . . . Authchips . | . . . Time . | . . . Total Part Build Rating . | . . . Part Studies Acquired . | . . . Parts Repaired . | . . . Time . | . . . Parts Recycled . | . . . Recycled Matter . | . . . Retrieved Matter . | . . . Retrieved Components . | . . . Parts Scanalyzed . | . . . Part Schematics Acquired . | . . . Parts Damaged . | . . . Bothacking | -11 -10 -9 ------------ Run | Yrd Mat Mat Used RIF Installer . | . . . Robots Hacked . | . . . Non-combat . | . . . Combat . | . . . Robot Hacks Applied . | . . . Relay Couplers Released . | . . . Fabnet Peak Effective % . | . . . Robots Rewired . | . . . Allies Hacked . | . . . Hacks Repelled . | . . . Allies | -11 -10 -9 -------- Run | Yrd Mat Mat Total Allies . | . . . Largest Group . | . . . Highest-Rated Group . | . . . Highest-Rated Ally . | . . . Total Orders . | . . . Ally Attacks . | . . . Total Damage . | . . . Kills . | . . . Allies Corrupted . | . . . Allies Melted . | . . . Intel | -11 -10 -9 ------- Run | Yrd Mat Mat Active Infowar (turns) 248 | . . 248 Optics 163 | . . 163 Terrain 3 | . . 3 Structural 145 | . . 145 Seismic 85 | . . 85 T.N.C. 108 | . . 108 Robot Analysis Total . | . . . Derelict Logs Recovered . | . . . Drone Launches . | . . . Drone Recoveries . | . . . Exploration | -11 -10 -9 ------------- Run | Yrd Mat Mat Turns Passed 526 | 10 51 465 Spaces Moved 662 | 19 95 548 Core 662 | 19 95 548 Treads . | . . . Legs . | . . . Wheels . | . . . Hover . | . . . Flight . | . . . Fastest Speed 50 | 50 50 50 Average Speed 50 | 50 50 50 Slowest Speed 50 | 50 50 50 Overloaded Moves . | . . . Propulsion Burnouts . | . . . Robots Hopped . | . . . Potential Cave-ins 2 | . . 2 Cave-ins Triggered 2 | . . 2 Exploration Rate (%) 21 | 3 26 35 Regions Visited 2 Branch Regions . Pre-discovered Areas . | . . . Known Exits Taken . | . . . Unknown Exits Taken 2 | 1 1 . Scrap Searched . | . . . Spaces Dug 12 | . . 12 Terrain Destroyed 12 | . . 12 Melee 12 | . . 12 Projectile . | . . . AOE . | . . . Terrain Rammed . | . . . Walls Destroyed . | . . . Machines Disabled . | . . . Actions | -11 -10 -9 --------- Run | Yrd Mat Mat Total 773 | 18 97 658 Wait 29 | . . 29 Move 660 | 18 94 548 Hop . | . . . Pick Up 11 | . 2 9 Fast Attach 10 | . . 10 Attach 2 | . . 2 Detach 3 | . . 3 Swap . | . . . Drop 7 | . . 7 Fire . | . . . Melee 50 | . . 50 Ram 1 | . 1 . Kick . | . . . Crush . | . . . Escape Stasis . | . . . Rewire . | . . . Trap . | . . . Miscellaneous . | . . . Route ------- -11/Scrapyard -10/Materials -9/Materials History --------- Turn | Location | Event 4 | -11/Scrapyard | Discovered new exit (range 14) 11 | -11/Scrapyard | Entered Materials 54 | -10/Materials | Discovered new exit (range 16) 56 | -10/Materials | Core integrity fell below 50% 59 | -10/Materials | Core integrity fell below 20% 62 | -10/Materials | Entered another Materials area 62 | -9/Materials | Evolved 2 slots: Utility x2 281 | -9/Materials | Crushed by falling debris 288 | -9/Materials | Crushed by falling debris 325 | -9/Materials | Build established: Mutant 329 | -9/Materials | Core integrity fell below 50% 340 | -9/Materials | Core integrity fell below 20% 527 | -9/Materials | Destroyed by G-34 Mercenary with Small Laser Last Messages --------------- 00422_ Destroyed Wheel. 00422_ U-05 Engineer destroyed. 00424_ Dropped Katana. 00424_ K-01 Serf collects debris. 00425_ Acquired 15 matter. 00426_ Acquired Terrain Scan Processor. 00427_ K-01 Serf collects debris. 00446_ W-16 Scout sends out distress signal. 00447_ TF Node disabled. 00447_ Sensor Array tumbles out of TF Node. 00447_ Signal Interpreter tumbles out of TF Node. 00447_ K-01 Serf collects debris. 00469_ Dropped Datajack. 00469_ U-05 Engineer builds a Wall. 00470_ Acquired ECM Suite. 00476_ T-07 Excavator is excavating. 00476_ Y-45 Defender Imp. Ion Engine severed. 00480_ Y-45 Defender destroyed. 00482_ U-05 Engineer lays Concrete. Map ----- +----------------------------------------------------+ | ????????????????????????????#### # | | ????????????????????????????## | | ????????????????????????????## ! | | ????????????????????????????## ! | | ????????????????????????????## | | ????????????????????????????## | | ????????????????????? # ????### | | ????????????????????? # ????### | | ?????????????????????## ?????## a | | ?????????????????????## ????## | | ????????????????????### ##?## | | ???????????????????? ## #####a | | ???????????????????? # #### | | ???????????????????? # | | ???????????????????? + | | ???????????????????? # | | ???????????????????? # ###+### | | ???????????????????? ## ### | | ???????????????????? ## ??## " | | ??????????#######????## a??## " | | ??????????#######????## ???## " | | ?????????? ???? ???##!!! | | ?????????? g ?????????????##!!! " | | ?######## g ? ###!! " | | ?#########/###?############## " | | ### @g ##?## # | | ### """" ##?## ###### | | ## ""S"" ##?## ###### | | ### "" "" ##?## ##???? | | ### g ##?## ##???? | | ?## ##?## ##???? | | ?## ##?## / ##???? | | ?## ##########+#######???? | | ?######+############ ######???? | | ?#### =##???????? | | ?#### [%!##???????? | | ?######/######### ## ![!##???????? | | ?## [ ## ##+####???????? | | ?## ### #### """ ???????? | | ?## """ [!! ######## """ ???????? | | ?## """ [! #####?## """ ""?????? | | ?## """ [! ##????## ?????? | | ?## ##????## [ ????? | | ?## ##????## ????? | | ?## ] ##????## = ?????? | | ?#############?????#########?????? | | | | | | | | | +----------------------------------------------------+ Best States ------------- Heat Dissipation 28 Energy Generation 5 Energy Capacity 100 Matter Stores 205 Matter Capacity 300 Sight Range 18 Terrain Scan Range 14 Terrain Scan Density 10 Core Shielding 20 Evasion (%) 50 Item Schematics ----------------- None Robot Schematics ------------------ None Fabricated ------------ Nothing Repaired ---------- Nothing Studied --------- None Alien Tech Used ----------------- None Achievements -------------- None Challenges ------------ None Game ------ Seed ResetSuperdenseThermoblaster Manual? 0 Play Time 00:08:20 Cumulative 19.0 hours Start 2025.10.31 @ 01:29:53 End 2025.10.31 @ 01:38:16 Sessions 1 Manual Loads 0 Difficulty Rogue Special Mode None Game No. 31 Rogue 31 Adventurer 0 Explorer 0 Win Type - Total 2 Types 2/0/0/0/0/0/0/0/0/0 Lore% 34 Gallery% 25 Achievement% 24 Wizard Run 0 Options --------- Layout 1 ASCII 0 Keyboard 1 Movement Arrows Keybinds 0 Fullscreen 1 Font 16/SmallcapsGlow Map View 50x54 Zoom Use 0% Tactical HUD 1 Map Filters NONE Filters NONE Steam 1 RUN: 492e1f0f-732c-47d0-ad64-36b9b6d7a84c